bitfinex/quotes_ETHUSD_20250520
["timestamp","ask_amount","ask_price","bid_price","bid_amount"]
[1747724735733,3.94119733,2537.3,2537.2,8.12682085]
[1747724737532,3.94119733,2537.3,2537.2,8.59782571]
[1747724738296,3.94119733,2537.3,2537.2,14.50482571]
[1747724739435,3.94119733,2537.3,2537.2,0.84782571]
[1747724739732,3.94119733,2537.3,2537.2,8.59782571]
[1747724739906,3.94119733,2537.3,2537.2,16.59782571]
[1747724740234,3.94119733,2537.3,2537.2,16.12682085]
[1747724743558,3.94099046,2537.5,2537.2,16.12682085]
[1747724743761,3.94108733,2537.4,2537.3,8.0]
[1747724745421,3.94108733,2537.4,2537.3,8.37682085]
[1747724746348,3.94108733,2537.4,2537.3,22.03382085]
[1747724746756,3.94108733,2537.4,2537.3,16.12682085]
[1747724746971,3.94108733,2537.4,2537.3,16.12582085]
[1747724747878,3.94108733,2537.4,2537.3,22.03282085]
[1747724748441,3.94108733,2537.4,2537.3,8.37682085]
[1747724748842,3.94108733,2537.4,2537.3,16.12582085]
[1747724749441,3.94108733,2537.4,2537.3,8.37682085]
[1747724749745,3.94108733,2537.4,2537.3,16.12582085]
[1747724751577,4.70428733,2537.4,2537.3,0.37682085]
[1747724751777,5.37136017,2537.4,2537.3,8.04482085]
[1747724752272,5.37136017,2537.4,2537.3,0.37682085]
[1747724752481,5.37136017,2537.4,2537.3,8.04482085]
[1747724752845,3.94108733,2537.4,2537.3,8.04482085]
[1747724757128,4.73898733,2537.4,2537.3,8.04582085]
[1747724758515,4.73898733,2537.4,2537.3,0.37682085]
[1747724758684,5.28898733,2537.4,2537.3,0.37682085]
[1747724758892,4.49135267,2537.2,2537.1,0.47100486]
[1747724759189,14.7889609,2537.2,2537.1,0.47100486]
[1747724759598,3.94166338,2537.0,2536.9,0.62800649]
[1747724759800,4.70364037,2536.5,2536.4,7.669]
[1747724759998,3.94275125,2536.3,2536.1,0.05]
[1747724760195,7.02905136,2536.2,2536.1,0.05]
[1747724760601,7.57905136,2536.2,2536.1,0.05]
[1747724760838,15.57905136,2536.2,2536.1,0.05]
[1747724761535,15.57905136,2536.2,2535.9,0.47194466]
[1747724761536,5.28351766,2536.0,2535.9,0.47194466]
[1747724761685,11.62038059,2536.0,2535.9,0.47194466]
[1747724762484,19.62038059,2536.0,2535.9,0.47194466]
[1747724763127,3.94405813,2535.5,2535.0,7.669]
[1747724763423,7.95263034,2535.2,2534.6,17.014]
[1747724763586,8.50263034,2535.2,2534.6,17.014]
[1747724763785,9.74732508,2535.2,2534.8,7.671]
[1747724764327,4.76111846,2534.2,2534.1,0.05]
[1747724767305,5.15367954,2534.2,2534.1,0.05]
[1747724770046,16.48497143,2531.9,2531.8,1.25315144]
[1747724770241,10.52841365,2531.9,2531.8,1.25315144]
[1747724770392,9.97841365,2531.9,2531.8,1.25315144]
[1747724770590,10.52841365,2531.9,2531.8,1.25315144]
[1747724770794,7.32634528,2531.9,2531.8,1.25315144]
[1747724770990,7.32634528,2531.9,2531.5,12.73243802]
[1747724770991,3.9500711,2531.6,2531.5,12.73243802]
[1747724771741,4.7251711,2531.6,2531.5,12.73243802]
[1747724771981,4.7251711,2531.6,2528.9,6.75460166]
[1747724772143,0.6174,2530.4,2527.8,2.364]
[1747724772349,0.6174,2530.4,2521.3,0.01665]
[1747724772350,3.9556962,2528.0,2521.3,0.01665]
[1747724772685,0.3677,2529.2,2522.5,59.91679969]
[1747724772686,3.26993673,2524.8,2522.5,59.91679969]
[1747724772977,0.7944,2525.0,2522.6,1.82383614]
[1747724773166,3.9615257,2524.3,2524.1,0.1]
[1747724773330,3.9615257,2524.3,2524.2,31.606]
[1747724773528,3.96120733,2524.5,2524.4,0.1]
[1747724773854,3.96120733,2524.5,2524.2,31.606]
[1747724773855,4.16452432,2525.1,2525.0,0.1]
[1747724774039,0.20417814,2525.1,2525.0,15.061]
[1747724774225,0.20417814,2525.1,2525.0,73.535443]
[1747724774430,3.95906802,2525.9,2525.8,0.1]
[1747724774639,3.95906802,2525.9,2525.8,32.117]
[1747724774841,0.05,2525.9,2525.8,32.067]
[1747724775041,0.05,2526.9,2526.8,0.05]
[1747724775279,0.05,2526.9,2525.7,15.398]
[1747724775280,3.95914165,2525.8,2525.7,15.398]
[1747724775458,3.95961195,2525.5,2525.4,0.05]
[1747724775774,0.7544,2527.3,2525.7,0.05]
[1747724775945,4.84617784,2526.7,2525.6,0.05]
[1747724776148,3.95929841,2525.7,2525.6,0.05]
[1747724776333,3.95961195,2525.5,2525.4,0.05]
[1747724776940,3.95867146,2526.1,2526.0,0.05]
[1747724777161,3.95867146,2526.1,2526.0,32.475]
[1747724777361,4.71128096,2527.3,2526.0,32.475]
[1747724777362,4.00741818,2526.9,2526.8,0.05]
[1747724777561,4.00741818,2526.9,2526.8,15.748]
[1747724778068,0.05,2526.9,2526.8,25.13868]
[1747724778470,4.00585268,2527.9,2527.8,0.05]
[1747724778775,1.95816751,2528.1,2528.0,0.05]
[1747724779070,5.91370724,2528.1,2528.0,0.05]
[1747724779567,5.91370724,2528.1,2528.0,15.748]
[1747724780384,3.95553973,2528.1,2528.0,15.748]
[1747724780675,3.95553973,2528.1,2528.0,15.61690557]
[1747724781375,3.95585268,2527.9,2527.8,31.567]
[1747724781533,3.95585268,2527.9,2527.8,32.767]
[1747724781734,4.2840608,2527.9,2527.8,32.767]
[1747724783168,4.2840608,2527.9,2527.8,30.11973268]
[1747724783346,0.32820812,2527.9,2527.8,38.11973268]
[1747724783545,0.05,2528.9,2527.9,8.0]
[1747724783736,0.05,2528.9,2528.0,0.03954292]
[1747724783932,0.05,2528.9,2527.9,8.0]
[1747724783933,0.05,2528.9,2528.1,0.7784]
[1747724784169,0.05,2528.9,2528.3,8.0]
[1747724784376,0.3677,2529.2,2528.5,8.0]
[1747724784583,3.94977397,2531.8,2528.9,8.0]
[1747724784584,4.74016706,2531.6,2528.9,8.0]
[1747724784784,3.95164251,2530.6,2529.8,8.0]
[1747724785081,1.95816751,2531.2,2529.9,8.0]
[1747724785285,1.95816751,2531.2,2529.8,30.24251501]
[1747724785286,1.95816751,2531.2,2530.2,0.55]
[1747724785584,3.95159944,2530.7,2530.4,8.0]
[1747724785784,3.95162661,2530.7,2530.4,8.0]
[1747724785948,0.05,2530.9,2530.4,14.5]
[1747724786151,3.95174615,2530.6,2530.4,14.5]
[1747724786455,0.05,2530.9,2530.6,0.55]
[1747724786662,0.05,2530.9,2530.7,43.974443]
[1747724787065,1.95816751,2531.2,2530.9,3.95102723]
[1747724787300,1.95816751,2531.2,2531.1,0.55]
[1747724787507,1.95816751,2531.2,2531.1,44.524443]
[1747724787660,1.95816751,2531.2,2531.1,44.30107]
[1747724787856,1.95816751,2531.2,2531.1,47.0104]
[1747724788166,0.05,2531.9,2531.2,0.55]
[1747724788591,3.95069532,2531.2,2531.1,23.699]
[1747724788795,0.17192282,2531.2,2531.1,48.12326086]
[1747724789302,0.17192282,2531.2,2531.1,40.6851]
[1747724789495,0.17192282,2531.2,2531.1,36.125]
[1747724789654,0.17192282,2531.2,2531.1,42.055189]
[1747724789858,4.12261814,2531.2,2531.1,42.055189]
[1747724790058,4.12261814,2531.2,2531.1,41.7663]
[1747724790259,4.12261814,2531.2,2530.5,0.8077]
[1747724790492,0.17192282,2531.2,2530.6,32.757]
[1747724790734,4.12263434,2531.2,2530.7,5.924]
[1747724790889,3.9512938,2530.9,2530.7,14.5]
[1747724791088,3.95131974,2530.8,2530.7,14.5]
[1747724791256,3.95147587,2530.7,2530.6,17.063]
[1747724791464,0.17192282,2531.2,2530.6,32.757]
[1747724791662,0.17192282,2531.2,2530.7,14.5]
[1747724791987,3.95131974,2530.8,2530.7,14.5]
[1747724792377,3.95131974,2530.8,2530.7,30.192]
[1747724793399,0.17192282,2531.2,2530.8,0.55]
[1747724793585,0.17192282,2531.2,2530.8,8.55]
[1747724793763,0.17192282,2531.2,2531.0,4.50091002]
[1747724794098,0.17192282,2531.2,2531.1,52.14312163]
[1747724794510,0.17192282,2531.2,2531.1,67.98472063]
[1747724794815,0.17518282,2531.2,2531.1,21.98180963]
[1747724795015,4.12587814,2531.2,2531.1,15.689]
[1747724795217,4.12592343,2531.2,2530.6,17.063]
[1747724795512,3.95126751,2530.9,2530.7,14.82986233]
[1747724795714,3.95106509,2531.0,2530.8,6.2961733]
[1747724795886,3.95101259,2531.0,2530.6,17.063]
[1747724796088,3.95101259,2531.0,2530.8,8.0]
[1747724796304,0.00326,2531.1,2530.9,60.026308]
[1747724796604,0.00326,2531.1,2531.0,14.063414]
[1747724797115,0.00326,2531.1,2531.0,15.9373674]
[1747724797315,0.00326,2531.1,2531.0,11.9863599]
[1747724797482,0.00326,2531.1,2531.0,26.4863599]
[1747724797685,0.00326,2531.1,2531.0,48.0983599]
[1747724798002,0.00326,2531.1,2531.0,48.00375]
[1747724798204,0.00326,2531.1,2531.0,48.00175]
[1747724799120,0.00326,2531.1,2531.0,32.883388]
[1747724799317,0.00326,2531.1,2531.0,33.433388]
[1747724799485,0.00326,2531.1,2531.0,40.921003]
[1747724800120,0.00326,2531.1,2531.0,50.7940105]
[1747724800291,0.05,2531.9,2531.8,5.26665906]
[1747724800495,0.05,2532.9,2532.2,0.55]
[1747724800813,0.05,2533.9,2533.0,0.7669]
[1747724800983,0.05,2533.9,2533.3,0.55]
[1747724801185,0.05,2533.9,2533.8,11.9466414]
[1747724801422,0.05,2534.9,2533.9,0.7669]
[1747724801740,0.05,2534.9,2534.7,3.94524006]
[1747724801944,3.19813108,2535.9,2535.3,3.94430639]
[1747724802118,4.32868023,2536.6,2535.2,0.7669]
[1747724802119,4.37605251,2536.3,2536.1,8.0]
[1747724802300,0.02075573,2538.1,2536.6,0.1]
[1747724802504,11.85914938,2538.9,2536.8,8.0]
[1747724802843,7.9203277,2538.9,2536.6,0.55]
[1747724803004,3.94212953,2536.7,2536.6,0.55]
[1747724803200,3.94116956,2537.4,2535.5,3.936]
[1747724803201,3.94197414,2536.8,2535.6,17.056]
[1747724803402,3.94119733,2537.3,2535.8,0.55]
[1747724803619,3.94275988,2536.3,2536.0,0.55]
[1747724803802,8.0,2537.2,2535.9,0.18829283]
[1747724804020,3.94212953,2536.7,2534.8,0.7589]
[1747724804188,3.94447961,2535.2,2534.8,0.7589]
[1747724804527,3.94586276,2534.3,2534.2,4.1446]
[1747724804747,3.89586276,2534.3,2534.2,0.2056]
[1747724804895,3.84586276,2534.3,2534.2,0.2056]
[1747724805747,3.94601846,2534.2,2534.1,0.05]
[1747724806117,11.94601846,2534.2,2534.1,0.05]
[1747724806304,11.94601846,2534.2,2533.1,0.05]
[1747724806305,3.94757618,2533.2,2533.1,0.05]
[1747724806633,3.94757618,2533.2,2532.1,0.05]
[1747724806634,3.94913513,2532.2,2532.1,0.05]
[1747724807130,3.94895171,2532.4,2532.1,0.05]
[1747724807131,0.8078,2532.9,2532.1,2.794]
[1747724807332,3.94710874,2533.5,2532.1,0.08948496]
[1747724807538,3.94913513,2532.2,2532.1,0.05]
[1747724807691,0.7946,2533.6,2532.1,20.24436]
[1747724807898,3.94822408,2532.8,2532.1,0.05]
[1747724808125,4.7416467,2533.6,2532.1,0.05]
[1747724808126,3.94882325,2532.4,2532.1,0.05]
[1747724808297,0.7946,2533.6,2532.3,8.0]
[1747724808599,0.7946,2533.6,2532.1,0.05]
[1747724808802,3.94816846,2532.9,2532.2,0.55]
[1747724809034,3.94820542,2532.8,2532.2,0.55]
[1747724809231,3.94808349,2532.9,2532.4,8.55]
[1747724809432,3.9462422,2534.1,2532.2,0.55]
[1747724809652,1.57918812,2534.2,2532.4,0.55]
[1747724809853,3.94701113,2533.6,2532.4,0.55]
[1747724810157,3.94632991,2534.0,2532.3,0.7987]
[1747724810343,4.49601846,2534.2,2532.3,0.7987]
[1747724810547,3.94677434,2533.8,2532.3,0.7987]
[1747724810726,8.0,2534.1,2532.1,0.05]
[1747724810926,3.94679717,2533.7,2532.1,0.05]
[1747724811132,11.94662597,2533.9,2532.1,0.05]
[1747724811332,3.94913513,2532.2,2532.1,0.05]
[1747724811728,3.94773707,2533.1,2532.1,8.05]
[1747724811933,3.94786377,2533.1,2532.2,0.55]
[1747724812129,3.9472152,2533.5,2532.8,8.55]
[1747724812361,3.94631021,2534.1,2533.2,8.55]
[1747724812657,0.7664,2535.1,2533.8,0.55]
[1747724812855,3.94467259,2535.1,2534.0,8.0]
[1747724813075,3.94574527,2534.4,2534.2,8.0]
[1747724813285,3.94534451,2534.7,2534.2,8.0]
[1747724813443,3.94541335,2534.6,2534.2,8.0]
[1747724813641,0.05,2534.9,2534.2,8.0]
[1747724813828,0.05,2534.9,2534.1,17.044]
[1747724814025,0.05,2534.9,2534.2,8.0]
[1747724814227,3.94548241,2534.6,2534.2,9.34815332]
[1747724814530,3.94529088,2534.7,2534.2,9.34815332]
[1747724814742,3.94508442,2534.8,2534.2,9.34815332]
[1747724814939,0.05,2534.9,2534.2,13.29415184]
[1747724815264,0.05,2534.9,2534.7,8.55]
[1747724815437,0.05,2534.9,2534.8,50.90231609]
[1747724815644,0.05,2534.9,2534.8,54.84740051]
[1747724815845,3.94386214,2535.6,2535.0,3.94476255]
[1747724816171,0.05,2535.9,2535.1,59.486389]
[1747724816340,0.05,2535.9,2535.3,0.55]
[1747724816676,0.05,2535.9,2535.8,12.49352866]
[1747724816882,0.05,2535.9,2535.8,51.256589]
[1747724817064,3.89337319,2535.9,2535.8,0.8092]
[1747724817372,0.7926,2536.8,2535.1,17.039]
[1747724817558,3.94555139,2534.5,2534.4,0.7529]
[1747724817764,3.94536427,2534.7,2534.4,4.475069]
[1747724817953,3.94536066,2534.7,2534.5,22.477369]
[1747724818150,3.94555139,2534.5,2534.4,0.7529]
[1747724818471,3.94383972,2535.6,2534.4,2.984833]
[1747724818644,3.94518124,2534.8,2534.4,0.7529]
[1747724819166,3.94522756,2534.8,2534.4,0.7529]
[1747724819367,3.94528651,2534.7,2534.4,0.7529]
[1747724819567,3.94368418,2535.7,2534.4,8.7529]
[1747724819778,3.94526179,2534.7,2534.4,8.7529]
[1747724820083,3.9449321,2534.9,2534.4,8.7529]
[1747724820287,3.9446172,2535.2,2534.6,8.0]
[1747724820494,3.94345096,2535.9,2534.5,8.55]
[1747724820637,3.94376182,2535.7,2534.5,11.94544995]
[1747724820832,3.94376182,2535.7,2534.7,0.55]
[1747724821149,4.73460647,2536.8,2535.3,8.55]
[1747724821150,3.94212953,2536.7,2535.3,8.55]
[1747724821468,3.94399526,2535.5,2535.4,25.036]
[1747724821773,3.94399526,2535.5,2535.4,30.6879]
[1747724821938,3.94399526,2535.5,2535.4,25.036]
[1747724822247,3.94399526,2535.5,2535.4,33.022]
[1747724822447,3.94399526,2535.5,2535.4,27.884933]
[1747724822649,3.94399526,2535.5,2535.4,25.036]
[1747724823165,4.7327795,2535.5,2535.4,17.036]
[1747724823987,3.94384268,2535.6,2535.4,17.036]
[1747724824188,3.94322726,2536.0,2535.5,8.0]
[1747724824398,3.9433584,2536.0,2535.5,11.9439666]
[1747724824562,3.94220988,2536.7,2535.6,0.55]
[1747724824758,3.94220988,2536.7,2535.7,8.0]
[1747724824961,3.94330021,2536.0,2535.6,0.55]
[1747724825203,3.94337716,2535.9,2535.6,0.55]
[1747724825405,3.94328807,2536.0,2535.6,0.55]
[1747724825585,3.94200837,2536.8,2535.7,35.35834098]
[1747724825765,3.9424574,2536.5,2535.8,0.55]
[1747724825960,3.94256146,2536.5,2535.9,8.55]
[1747724826296,3.94236056,2536.6,2536.1,8.55]
[1747724826491,4.75868357,2537.4,2536.1,8.55]
[1747724826492,0.8175,2537.4,2536.1,8.55]
[1747724826665,3.94158535,2537.1,2535.9,8.55]
[1747724826860,4.75862016,2537.4,2535.6,0.7715]
[1747724827109,3.94368418,2535.7,2535.5,8.0]
[1747724827275,3.94339244,2535.9,2535.7,8.0]
[1747724827481,3.94296013,2536.2,2535.5,11.94398808]
[1747724827690,3.94197414,2536.8,2535.6,0.55]
[1747724828002,3.94197414,2536.8,2535.4,17.036]
[1747724828003,3.9918782,2536.9,2536.4,8.0]
[1747724828174,0.05,2536.9,2536.6,8.0]
[1747724828622,0.05,2536.9,2536.8,8.0]
[1747724828822,0.05,2536.9,2536.7,0.55]
[1747724829016,0.05,2536.9,2536.8,25.56879414]
[1747724830018,3.99030916,2537.9,2537.3,3.94113038]
[1747724830242,3.99030916,2537.9,2537.1,3.94141622]
[1747724830243,0.05,2537.9,2537.4,0.03940138]
[1747724830441,0.05,2537.9,2537.1,8.0]
[1747724830442,0.05,2537.9,2537.6,8.0]
[1747724830613,3.99028701,2537.9,2537.6,8.0]
[1747724830807,3.99035707,2537.9,2537.6,8.0]
[1747724831008,3.99030232,2537.9,2537.6,8.0]
[1747724831214,0.05,2537.9,2537.7,0.55]
[1747724831517,0.05,2537.9,2537.6,8.0]
[1747724831711,0.05,2537.9,2537.7,10.367277]
[1747724832032,0.05,2537.9,2537.6,8.0]
[1747724832212,3.99030461,2537.9,2537.6,8.0]
[1747724832554,3.94057611,2537.7,2537.6,8.0]
[1747724832733,0.05,2537.9,2537.6,8.0]
[1747724833308,0.05,2537.9,2537.8,8.0]
[1747724833509,0.05,2537.9,2537.5,17.028]
[1747724833510,3.94073139,2537.6,2537.5,17.028]
[1747724833833,0.05,2537.9,2537.5,17.028]
[1747724834155,0.05,2537.9,2537.6,16.234811]
[1747724834316,0.05,2537.9,2537.7,14.27239]
[1747724834661,0.05,2537.9,2537.5,17.028]
[1747724834847,0.05,2537.9,2537.7,0.55]
[1747724835057,0.05,2537.9,2537.8,8.829322]
[1747724835373,0.05,2537.9,2537.8,5.0859]
[1747724836173,3.99026557,2537.9,2537.6,8.0]
[1747724836481,3.99037954,2537.9,2537.6,8.0]
[1747724836684,3.99037954,2537.9,2537.8,8.0]
[1747724836862,3.94050618,2537.8,2537.6,8.0]
[1747724837177,3.94057611,2537.7,2537.6,8.0]
[1747724838080,0.05,2537.9,2537.7,0.55]
[1747724838234,0.05,2537.9,2537.8,44.82243383]
[1747724838456,0.05,2537.9,2537.8,36.80658447]
[1747724838637,0.05,2537.9,2537.8,31.6557683]
[1747724839370,0.05,2537.9,2537.8,14.22396247]
[1747724840643,0.05,2537.9,2537.8,18.1643833]
[1747724841053,0.05,2537.9,2537.8,14.22396247]
[1747724842071,0.05,2537.9,2537.8,13.67396247]
[1747724842289,0.05,2537.9,2537.8,3.68913347]
[1747724842290,3.99026557,2537.9,2537.8,3.68913347]
[1747724842499,3.99026557,2537.9,2537.8,0.32893947]
[1747724845598,3.94188274,2536.9,2536.7,17.01]
[1747724845769,3.94057611,2537.7,2536.8,8.0]
[1747724845974,3.94143581,2537.2,2536.9,0.32905617]
[1747724846185,3.941532,2537.1,2536.9,0.32905617]
[1747724846507,3.94164141,2537.1,2536.9,0.32905617]
[1747724846668,3.94145277,2537.2,2536.9,0.32905617]
[1747724846877,3.9415169,2537.1,2536.9,0.32905617]
[1747724848111,3.94166338,2537.0,2536.9,0.32905617]
[1747724848269,3.94166338,2537.0,2536.9,11.28481717]
[1747724848605,3.9415632,2537.1,2537.0,8.0]
[1747724848765,3.9415632,2537.1,2537.0,8.3290432]
[1747724849167,3.99029637,2537.9,2537.1,8.55]
[1747724849168,0.05,2537.9,2537.1,8.55]
[1747724849368,0.05,2537.9,2537.3,0.55]
[1747724849671,3.94088669,2537.5,2537.4,0.32899133]
[1747724849995,3.94073142,2537.6,2537.4,0.32899133]
[1747724850183,3.94042083,2537.8,2537.4,0.32899133]
[1747724850368,3.94081734,2537.6,2537.4,0.32899133]
[1747724850902,3.94088669,2537.5,2537.4,0.32899133]
[1747724851668,4.72905001,2537.5,2537.4,0.32899133]
[1747724852306,10.56172571,2537.5,2537.4,0.32899133]
[1747724854101,3.94197414,2536.8,2536.7,17.01]
[1747724855208,3.94290671,2536.2,2536.1,0.46245091]
[1747724855374,4.33719738,2536.2,2536.1,0.46245091]
[1747724857586,3.94368418,2535.7,2535.6,0.46245091]
[1747724859280,3.94446197,2535.2,2535.1,0.05]
[1747724866479,4.49446197,2535.2,2535.1,0.05]
[1747724866702,3.94446197,2535.2,2535.1,0.05]
[1747724880910,4.49446197,2535.2,2535.1,0.05]
[1747724881247,3.94446197,2535.2,2535.1,0.05]
[1747724881420,3.94563988,2534.5,2534.3,17.018]
[1747724881622,3.94477317,2535.0,2534.3,17.018]
[1747724881931,3.9454812,2534.6,2534.3,17.018]
[1747724882133,3.94555139,2534.5,2534.4,8.0]
[1747724882743,3.94555139,2534.5,2534.4,23.016]
[1747724883119,3.94570707,2534.4,2534.3,17.018]
[1747724883313,3.94570707,2534.4,2534.3,32.034]
[1747724883746,3.94508442,2534.8,2534.3,32.034]
[1747724883934,3.94570707,2534.4,2534.3,32.034]
[1747724884889,3.94526308,2534.7,2534.3,32.034]
[1747724884890,4.73333992,2535.2,2534.3,32.034]
[1747724885026,0.41778322,2535.1,2534.3,32.034]
[1747724885231,3.94570707,2534.4,2534.3,40.034]
[1747724886078,3.94570707,2534.4,2534.3,39.683]
[1747724886235,3.94570707,2534.4,2534.3,31.683]
[1747724886937,3.94570707,2534.4,2534.3,14.665]
[1747724887128,4.73483382,2534.4,2534.3,14.665]
[1747724887328,4.73483382,2534.4,2534.2,0.46245091]
[1747724887329,3.94586276,2534.3,2534.2,0.46245091]
[1747724888537,3.94601846,2534.2,2534.1,0.05]
[1747724889671,10.67778322,2535.1,2534.1,0.05]
[1747724889874,3.94578673,2534.4,2534.1,0.05]
[1747724890166,3.9450309,2534.9,2534.1,0.05]
[1747724890372,3.94601846,2534.2,2534.1,0.05]
[1747724891361,13.57941846,2534.2,2534.1,0.05]
[1747724891733,16.82260394,2534.2,2534.1,0.05]
[1747724892161,16.27260394,2534.2,2534.1,0.05]
[1747724892374,13.02941846,2534.2,2534.1,0.05]
[1747724892575,14.72694877,2534.2,2534.1,0.05]
[1747724892794,6.72694877,2534.2,2534.1,0.05]
[1747724894287,3.94601846,2534.2,2534.1,0.05]
[1747724899894,3.94459735,2535.2,2534.1,3.99611711]
[1747724900093,3.94528282,2534.7,2534.2,12.94123406]
[1747724900392,3.94525427,2534.7,2534.2,4.94121181]
[1747724900692,3.94525427,2534.7,2534.3,1.09062118]
[1747724900889,3.94525427,2534.7,2534.5,8.0]
[1747724901058,0.46350483,2535.5,2534.7,8.0]
[1747724901255,3.94488982,2535.0,2534.7,8.0]
[1747724901450,0.46350483,2535.5,2534.7,8.0]
[1747724901653,3.94455696,2535.2,2534.7,8.71245923]
[1747724901849,3.94415082,2535.4,2534.8,4.49504815]
[1747724901850,3.94428196,2535.4,2534.8,4.49504815]
[1747724902083,3.94428196,2535.4,2534.9,0.9564]
[1747724902292,3.94432555,2535.3,2534.9,0.9564]
[1747724902487,4.40755336,2535.5,2534.9,2.04702118]
[1747724902488,3.94419089,2535.4,2534.9,2.04702118]
[1747724902651,3.94419089,2535.4,2534.9,10.04702118]
[1747724902855,3.94434079,2535.3,2534.9,10.04702118]
[1747724903051,3.94371619,2535.7,2534.9,2.04702118]
[1747724903375,3.94374457,2535.7,2534.7,8.46245091]
[1747724903616,3.94450581,2535.2,2534.7,8.46245091]
[1747724903793,3.94421168,2535.4,2534.7,12.4075945]
[1747724903959,3.94462232,2535.1,2534.7,8.46245091]
[1747724904154,3.94445471,2535.3,2534.7,12.40767901]
[1747724904355,3.94471347,2535.1,2534.7,8.46245091]
[1747724904995,3.94485946,2535.0,2534.7,8.46245091]
[1747724905192,3.94508442,2534.8,2534.7,8.46245091]
[1747724905494,3.94481766,2535.0,2534.7,11.72236191]
[1747724905792,3.94392685,2535.6,2534.8,21.112994]
[1747724905995,3.94469612,2535.1,2534.7,8.46245091]
[1747724906155,3.94468647,2535.1,2534.7,8.46245091]
[1747724906353,3.94452843,2535.2,2534.7,8.46245091]
[1747724906555,3.94439153,2535.3,2534.8,0.55]
[1747724907090,3.94335497,2536.0,2534.7,8.0]
[1747724907091,3.94473594,2535.1,2534.7,8.0]
[1747724907296,3.9443479,2535.3,2534.7,11.94517311]
[1747724907596,3.94382631,2535.7,2534.7,11.94517311]
[1747724907781,3.9445406,2535.2,2534.8,8.0]
[1747724908182,3.9445406,2535.2,2534.7,8.0]
[1747724908383,3.94429781,2535.4,2534.8,3.9450303]
[1747724908896,3.94434152,2535.3,2534.8,3.9450303]
[1747724909094,3.94345768,2535.9,2535.4,8.0]
[1747724909391,3.94354484,2535.8,2535.6,8.0]
[1747724909594,3.94293032,2536.2,2535.8,8.0]
[1747724909781,3.94304499,2536.2,2535.8,0.9663]
[1747724909982,3.94279941,2536.3,2535.8,5.51840067]
[1747724910287,3.94298276,2536.2,2535.8,1.57487738]
[1747724910500,3.94279885,2536.3,2535.8,9.57487738]
[1747724910673,3.94292286,2536.2,2535.8,9.57487738]
[1747724910996,3.94292286,2536.2,2535.8,1.57487738]
[1747724911199,0.05,2536.9,2535.8,1.57487738]
[1747724911362,0.05,2536.9,2536.0,8.0]
[1747724911363,0.6572505,2536.9,2536.0,8.0]
[1747724911554,3.94283326,2536.3,2535.8,5.51837594]
[1747724911797,0.05,2536.9,2536.2,8.0]
[1747724911958,3.94216999,2536.7,2536.3,13.621]
[1747724912303,3.94244037,2536.5,2536.4,8.0]
[1747724912595,3.94244037,2536.5,2536.4,25.027]
[1747724912796,0.05,2536.9,2536.4,25.027]
[1747724912997,0.05,2536.9,2536.4,32.13350303]
[1747724913160,0.05,2536.9,2536.5,0.9642]
[1747724913358,0.05,2536.9,2536.6,11.94213821]
[1747724913573,0.05,2536.9,2536.8,8.0]
[1747724913868,0.05,2536.9,2536.8,25.094908]
[1747724914070,0.05,2536.9,2536.8,30.19545952]
[1747724915376,0.05,2536.9,2536.8,31.15115952]
[1747724915574,0.05,2537.9,2537.4,0.55]
[1747724915898,0.05,2537.9,2537.6,12.49071782]
[1747724916075,0.05,2537.9,2537.8,8.0]
[1747724916272,3.99026557,2537.9,2537.8,17.89515503]
[1747724916482,3.94073139,2537.6,2537.5,25.9768]
[1747724916665,0.05,2537.9,2537.7,0.55]
[1747724917002,3.99026557,2537.9,2537.8,26.64172]
[1747724917175,3.99026557,2537.9,2537.8,26.30632]
[1747724917379,0.05,2537.9,2537.8,24.536002]
[1747724917573,0.05,2537.9,2537.8,25.086002]
[1747724919863,1e-08,2537.9,2537.8,25.086002]
[1747724920064,3.93936083,2538.5,2537.8,25.086002]
[1747724920065,3.93940681,2538.5,2537.9,36.135403]
[1747724920295,3.93919362,2538.6,2538.1,0.55]
[1747724920483,3.93904813,2538.7,2538.3,8.0]
[1747724920694,3.93941974,2538.5,2538.3,8.0]
[1747724920879,3.93941974,2538.5,2538.4,20.130901]
[1747724921092,3.93941974,2538.5,2538.4,14.722277]
[1747724921295,3.93941974,2538.5,2538.4,29.222277]
[1747724921600,3.93941974,2538.5,2538.4,22.5]
[1747724921902,3.93941974,2538.5,2538.4,26.25811]
[1747724922200,3.93924886,2538.6,2538.4,26.25811]
[1747724922400,3.93925726,2538.6,2538.5,22.921]
[1747724923804,3.93925726,2538.6,2538.5,32.72408041]
[1747724924004,0.05,2539.9,2538.9,1.5689]
[1747724924206,0.05,2539.9,2539.1,0.55]
[1747724924412,0.05,2539.9,2539.8,12.95621789]
[1747724924569,1.81427498,2541.7,2540.0,0.55]
[1747724924769,1.81427498,2541.7,2539.8,23.9359]
[1747724924770,1.60888557,2541.7,2540.2,8.55]
[1747724925023,3.93550572,2541.0,2540.4,8.0]
[1747724925229,3.98576206,2540.9,2540.4,8.0]
[1747724925516,0.05,2540.9,2540.6,8.0]
[1747724925682,0.05,2540.9,2540.8,8.55]
[1747724925882,0.05,2540.9,2540.8,61.239613]
[1747724926301,0.05,2540.9,2540.8,66.12828126]
[1747724926699,0.05,2541.9,2540.9,4.48551829]
[1747724927005,0.05,2541.9,2540.8,40.687513]
[1747724927006,0.05,2541.9,2541.1,8.55]
[1747724927166,0.05,2541.9,2541.2,0.55]
[1747724927167,3.98418287,2541.9,2541.2,0.55]
[1747724927368,0.05,2541.9,2541.4,0.55]
[1747724927569,0.05,2541.9,2541.7,0.55]
[1747724927771,0.05,2541.9,2541.8,64.902111]
[1747724927966,0.05,2541.9,2541.8,50.447389]